Cogmind - Beta 16 --- EXPLORER MODE // 2025.11.25 @ 16:46:35 Player: K.K.Y. Result: Core destroyed Performance ------------- Evolutions (4) 2000 Regions Visited (7) 1400 Robots Destroyed (43) 215 Value Destroyed (1146) 1146 Prototype IDs (15) 300 Alien Tech Used (0) 0 Bonus (971) 971 TOTAL SCORE: 6032 Bonus ------- Follower Combat Kills 171 Registered with UFD 300 Met Optimus in HQ 500 Cogmind --------- Core Integrity 0/850 Matter 300/300 Energy 100/100 System Corruption 15% Temperature Cool (0) Movement Core (50) Location -6/Waste Parts ------- > --- POWER (2) -------- (None) > --- PROPULSION (4) --- (None) > --- UTILITY (8) ------ (None) > --- WEAPON (2) ------- (None) > --- INVENTORY (5) ---- Humpback Mining Laser Peak State ------------ > --- POWER ------------ Improved Deuterium Engine Light Angular Momentum Engine > --- PROPULSION ------- Spiked Treads Advanced Treads Medium Treads Improved Medium Treads > --- UTILITY ---------- Large Storage Unit Active Sensor Suite Improved Light Armor Plating Makeshift System Shield Improved System Shield Tech Extrapolator > --- WEAPON ----------- Gatling Laser Proton Cannon > --- INVENTORY -------- Advanced Heat Sink Humpback Deep Structural Scanner IFF Parser Authchip [R/Combat] Authchip [Processor] Authchip [Processor] Improved EM Pulse Cannon Gauss Rifle Advanced Assault Cannon Magnetic Acceleration Cannon Mining Laser Voltaic Drivehammer Companion Sword [Rating: 84] Favorites ----------- Power Ion Engine Engine Ion Engine Propulsion Light Treads Treads Light Treads Utility Large Storage Unit Device Active Sensor Suite Storage Large Storage Unit Processor Tech Extrapolator Hackware Improved System Shield Protection Improved Light Armor Plating Weapon Minigun Energy Gun Gatling Laser Energy Cannon Proton Cannon Ballistic Gun Minigun Special Weapon Voltaic Drivehammer Build | -11 -10 -10 -10 -9 -9 -6 -6 ------- Run | Yrd Mat Min Sub Rec Scr Fac Was Slots Evolved 9 | . 1 . . . . 8 . Power 1 | . . . . . . 1 . Propulsion 2 | . . . . . . 2 . Utility 6 | . 1 . . . . 5 . Weapon . | . . . . . . . . Parts Attached 28 | 6 1 3 3 1 4 7 3 Power 3 | 1 . . . . 1 1 . Engine 3 | 1 . . . . 1 1 . Core . | . . . . . . . . Reactor . | . . . . . . . . Propulsion 8 | 2 . . 2 1 . 3 . Treads 8 | 2 . . 2 1 . 3 . Leg . | . . . . . . . . Wheel . | . . . . . . . . Hover . | . . . . . . . . Flight . | . . . . . . . . Utility 8 | 2 1 1 . . 1 3 . Device 1 | . . . . . . 1 . Storage 2 | 1 1 . . . . . . Processor 1 | . . . . . . 1 . Hackware 2 | . . . . . 1 1 . Protection 2 | 1 . 1 . . . . . Artifact . | . . . . . . . . Weapon 9 | 1 . 2 1 . 2 . 3 Energy Gun 2 | 1 . . . . 1 . . Energy Cannon 3 | . . 1 . . 1 . 1 Ballistic Gun 2 | . . 1 1 . . . . Ballistic Cannon 1 | . . . . . . . 1 Launcher . | . . . . . . . . Special Weapon 1 | . . . . . . . 1 Impact Weapon . | . . . . . . . . Slashing Weapon . | . . . . . . . . Piercing Weapon . | . . . . . . . . Special Melee Weapon . | . . . . . . . . Unidentified Prototypes . | . . . . . . . . Parts Lost 14 | . . . 2 1 . . 11 Power 3 | . . . . 1 . . 2 Propulsion 2 | . . . . . . . 2 Utility 3 | . . . 1 . . . 2 Weapon 6 | . . . 1 . . . 5 Highest Loss Streak 11 | . . . 2 1 . . 11 To Critical Strikes 2 | . . . . . . . 2 Average Backups 9 | 1 . 4 7 12 12 13 10 Power . | . . . . . . . . Propulsion . | . . 1 . . . . . Utility 5 | . . 1 3 7 7 5 5 Weapon 3 | . . 1 3 5 4 6 5 Tool/Special . | . . . . . . . . Unused Backups 19 | . . . . . 8 1 10 Power . | . . . . . . . . Propulsion . | . . . . . . . . Utility 9 | . . . . . 2 . 7 Weapon 9 | . . . . . 6 . 3 Tool/Special 1 | . . . . . . 1 . Average Slot Usage (%) 85 | . 75 94 93 77 86 80 63 Engine 6 | . 12 12 12 2 . 6 8 Treads 24 | . 25 25 25 25 25 24 17 Storage 11 | . 12 12 12 12 12 6 3 Hackware 4 | . . . . . 11 11 10 Protection 14 | . 12 21 20 12 12 6 3 Energy Gun 3 | . 12 2 . . 9 6 3 Energy Cannon 6 | . . 9 7 . 11 6 4 Ballistic Gun 10 | . . 9 14 25 3 . . Peak Build Rating 84 | 6 7 14 17 18 33 84 84 Average Rating 24 | 3 6 12 14 17 25 77 65 On Entrance 22 | . 6 6 14 17 18 33 84 Avg Prop Armor Cover (%) . | . . . . . . . . Naked Turns 20 | . . . . . . . 20 Heaviest Build 58 | 20 30 40 40 35 45 58 58 Greatest Support 100 | 40 40 40 40 43 43 100 100 Greatest Overweight (x) 4 | . . . . . 1 1 4 Average Overweight (x) . | . . . . . . . . Largest Inventory Capacity 15 | 10 15 15 15 15 15 15 15 Average Capacity 14 | 8 12 15 15 15 15 15 11 Most Carried 15 | 5 1 7 13 15 15 15 15 Average Carried 10 | 1 . 4 8 14 14 14 10 Final Capacity 15 | 10 15 15 15 15 15 15 5 Final Carried 15 | . 1 5 12 15 15 15 3 Class Distribution -------------------- 71% | Hacker-Mutant 17% | Commander-Mutant 11% | Hacker-Skirmisher Dominant Class ---------------- Hacker-Mutant | -10/Materials Hacker-Mutant | -10/Mines Hacker-Mutant | -10/Subcaves Commander-Mutant | -9/Recycling Hacker-Mutant | -9/Scraptown Hacker-Skirmisher | -6/Factory Hacker-Skirmisher | -6/Waste Resources | -11 -10 -10 -10 -9 -9 -6 -6 ----------- Run | Yrd Mat Min Sub Rec Scr Fac Was Matter Collected 782 | 177 93 46 257 92 47 60 10 Remotely . | . . . . . . . . Salvage Created 1293 | . 63 111 286 416 . 417 . Parts 83 | . 9 12 16 19 . 27 . Haulers Intercepted . | . . . . . . . . Recyclers Shooed 4 | . . . . 1 . 3 . Parts Field Recycled . | . . . . . . . . Retrieved Matter . | . . . . . . . . Parts Self-Destructed . | . . . . . . . . Prevented . | . . . . . . . . Parts Restored . | . . . . . . . . Kills | -11 -10 -10 -10 -9 -9 -6 -6 ------- Run | Yrd Mat Min Sub Rec Scr Fac Was Combat Hostiles Destroyed 32 | . 2 3 6 9 . 12 . Guns 22 | . 2 2 4 9 . 5 . Cannons 5 | . . 1 2 . . 2 . AOE 5 | . . . . . . 5 . Classes Destroyed 12 | . 3 2 3 4 . . . Worker 3 | . . 1 . . . 2 . Builder 3 | . 1 . . . . 2 . Tunneler 2 | . . 2 . . . . . Turret 2 | . . . 2 . . . . Watcher 1 | . 1 . . . . . . Swarmer 18 | . 2 3 2 1 . 10 . Grunt 3 | . . . 2 . . 1 . Duelist 1 | . . . . 1 . . . Sentry 5 | . . . . 5 . . . Hunter 1 | . . . . 1 . . . Programmer 2 | . . . . 1 . 1 . Subdweller 2 | . . . 2 . . . . Best Kill Streak 10 | . 3 2 4 5 . 10 . Combat Bots Only 6 | . 2 2 2 5 . 6 . Max Kills in Single Turn 7 | . 1 1 2 1 . 7 . Gunslinging . | . . . . . . . . Exploded 5 | . . . . . . 5 . Melee . | . . . . . . . . Uniques/NPCs Destroyed . | . . . . . . . . Combat | -11 -10 -10 -10 -9 -9 -6 -6 -------- Run | Yrd Mat Min Sub Rec Scr Fac Was Hostile Shots Fired 188 | . 7 8 83 34 . 23 33 Missed 45 | . 2 3 29 5 . 6 . Hits 143 | . 5 5 54 29 . 17 33 Melee 34 | . . . . 1 . . 33 Projectile 109 | . 5 5 54 28 . 17 . Critical Strikes 21 | . . . . . . . 21 Damage Taken 1981 | . 20 55 469 257 . 166 1014 Core 965 | . . 23 33 43 . 9 857 Absorbed by Shields . | . . . . . . . . Ignored by Resistances 1137 | . 16 38 273 162 . 100 548 Core Remaining (%) 80 | 100 . . . . 60 . . Volleys Fired 104 | . 9 9 57 14 1 14 . Largest 2 | . 1 2 2 2 2 2 . Hottest 155 | . 50 88 88 58 155 155 . Shots Fired 179 | . 9 13 99 28 2 28 . Gun 121 | . 9 9 60 28 1 14 . Cannon 58 | . . 4 39 . 1 14 . Launcher . | . . . . . . . . Special . | . . . . . . . . Kinetic 92 | . . 4 60 28 . . . Thermal 29 | . 9 5 . . 1 14 . Explosive . | . . . . . . . . Electromagnetic 58 | . . 4 39 . 1 14 . Robot Hit Streak 29 | . 8 13 29 10 . 7 . Robot Miss Streak 3 | . 1 1 1 1 . 3 . Penetration Max . | . . . . . . . . Secondary Targets . | . . . . . . . . Shots Hit Robots 110 | . 8 10 52 23 . 17 . Core Hits 82 | . 4 7 15 13 . 43 . Critical Kills . | . . . . . . . . Critical Parts Destroyed . | . . . . . . . . Critical Strikes 3 | . 1 1 1 . . . . Burn 2 | . 1 1 . . . . . Corrupt 1 | . . . 1 . . . . Melee Attacks . | . . . . . . . . Impact . | . . . . . . . . Slashing . | . . . . . . . . Piercing . | . . . . . . . . Sneak Attacks . | . . . . . . . . Combat Hostiles . | . . . . . . . . Follow-up Attacks . | . . . . . . . . Damage Inflicted 2931 | . 102 165 1033 474 . 1101 56 Guns 1440 | . 102 115 531 470 . 222 . Cannons 695 | . . 46 502 . . 147 . Explosions 732 | . . . . . . 732 . Melee . | . . . . . . . . Ramming 64 | . . 4 . 4 . . 56 Kinetic 1052 | . . 51 531 470 . . . Thermal 631 | . 102 64 . . . 465 . Explosive . | . . . . . . . . Electromagnetic 1184 | . . 46 502 . . 636 . Impact . | . . . . . . . . Slashing . | . . . . . . . . Piercing . | . . . . . . . . Highest Corruption 15 | . . . . . . . 15 Average Corruption 6 | . . . . . . . 6 Corruption Purged . | . . . . . . . . Corruption Blocked . | . . . . . . . . Effects 5 | . . . . . . . 5 Message Errors 2 | . . . . . . . 2 Matter Fused 2 | . . . . . . . 2 Heat Flow Errors 1 | . . . . . . . 1 Overload Shots . | . . . . . . . . Overflow Damage . | . . . . . . . . Projectiles . | . . . . . . . . Explosions . | . . . . . . . . Melee . | . . . . . . . . Knockbacks . | . . . . . . . . Impact . | . . . . . . . . Kinetic . | . . . . . . . . Secondary . | . . . . . . . . Self-Inflicted Damage 23 | . . . . . . . 23 Shots . | . . . . . . . . Rammed 19 | . . 2 . 1 . . 16 Targets Rammed 19 | . . 2 . 1 . . 16 Kicked . | . . . . . . . . Crushed . | . . . . . . . . Highest Temperature 248 | . 48 116 87 87 84 248 85 Average Temperature 51 | . 19 38 27 33 48 105 48 Received Heat Transfer 345 | . . . 246 72 . 27 . Siege Activations . | . . . . . . . . Martial Activations . | . . . . . . . . Shielding Activations . | . . . . . . . . Robots Disrupted 1 | . . . . . . 1 . Combat Hostiles . | . . . . . . . . Robots Corrupted . | . . . . . . . . Combat Hostiles . | . . . . . . . . Parts Fried 2 | . . . . . . 2 . Impact Corruptions . | . . . . . . . . Robots Melted . | . . . . . . . . Combat Hostiles . | . . . . . . . . Parts Melted 1 | . . . . . . 1 . Heat Transferred 1329 | . 370 259 . . . 700 . Parts Sabotaged . | . . . . . . . . Parts Stolen . | . . . . . . . . Parts Stripped . | . . . . . . . . Power Chain Reactions 1 | . . . . . . 1 . Alert | -11 -10 -10 -10 -9 -9 -6 -6 ------- Run | Yrd Mat Min Sub Rec Scr Fac Was Maximum Alert Level 1 | . . . . . . 1 . Low Security (%) 98 | 100 100 100 . 100 . 92 100 Level 1 1 | . . . . . . 7 . Level 2 . | . . . . . . . . Level 3 . | . . . . . . . . Level 4 . | . . . . . . . . Level 5 . | . . . . . . . . High Security . | . . . . . . . . Max Security . | . . . . . . . . Peak Influence 259 | . 55 52 . 100 . 259 52 Initial 52 | . . . . . . . 52 Average 10 | . 9 3 . 5 . 32 10 Influence Increases 1396 | . 62 117 654 184 . 379 . Destroy 0b10 Robot/C 740 | . 40 80 180 180 . 260 . Destroy 0b10 Robot/NC 45 | . 10 15 . . . 20 . Destroy Leader 92 | . 12 20 20 . . 40 . Allied During Kill 17 | . . 2 4 4 . 7 . Successful Hack 20 | . . . . . . 20 . Disable Machine 12 | . . . . . . 12 . Destroy Structure 5 | . . . . . . 5 . Lose Combat Pursuer 465 | . . . 450 . . 15 . Influence Decreases 1396 | . 62 117 654 184 . 160 219 Entered New Map 167 | . . . . . . . 167 Time Decay 1129 | . 62 117 614 174 . 110 52 Lost Part 30 | . . . 20 10 . . . Lost Ally 70 | . . . 20 . . 50 . Squads Dispatched 2 | . . . . . . 2 . Investigation . | . . . . . . . . Extermination 1 | . . . . . . 1 . Reinforcement 1 | . . . . . . 1 . Assault . | . . . . . . . . Garrison . | . . . . . . . . Intercept . | . . . . . . . . Searches Triggered . | . . . . . . . . Construction Impeded 1 | . . . . . . 1 . Haulers Reinforced . | . . . . . . . . Active Scanning Responses . | . . . . . . . . Cargo Convoy Interrupts . | . . . . . . . . Stealth | -11 -10 -10 -10 -9 -9 -6 -6 --------- Run | Yrd Mat Min Sub Rec Scr Fac Was Distress Signals . | . . . . . . . . Communications Jammed . | . . . . . . . . Distress Signals . | . . . . . . . . Times Spotted 71 | . 5 4 34 7 1 14 6 Peak Tracking Total 7 | . 2 2 6 5 . 7 6 Tactical Retreats 3 | . . . 2 . . 1 . Traps | -11 -10 -10 -10 -9 -9 -6 -6 ------- Run | Yrd Mat Min Sub Rec Scr Fac Was Traps Triggered 4 | . . 1 1 . . 2 . Indirectly . | . . . . . . . . Trap Hack Attempts . | . . . . . . . . Triggered . | . . . . . . . . Disarmed . | . . . . . . . . Reprogrammed . | . . . . . . . . Reused . | . . . . . . . . Traps Extracted . | . . . . . . . . Installed . | . . . . . . . . Triggered . | . . . . . . . . Machines | -11 -10 -10 -10 -9 -9 -6 -6 ---------- Run | Yrd Mat Min Sub Rec Scr Fac Was Machines Disabled 5 | . . . 1 . 1 3 . Max in Single Turn 2 | . . . 1 . 1 2 . Machines Repaired . | . . . . . . . . Machines Dismantled . | . . . . . . . . Machines Sabotaged . | . . . . . . . . Overloaded Fab Kills . | . . . . . . . . Hacking | -11 -10 -10 -10 -9 -9 -6 -6 --------- Run | Yrd Mat Min Sub Rec Scr Fac Was Machines Accessed 9 | . . 1 1 . 3 4 . Terminals 2 | . . . . . . 2 . Fabricators 1 | . . . . . . 1 . Repair Stations 1 | . . . . . . 1 . Recycling Units . | . . . . . . . . Scanalyzers . | . . . . . . . . Garrison Access . | . . . . . . . . Total Hacks 22 | . . 1 5 . 3 13 . Successful 19 | . . 1 5 . 3 10 . Failed 3 | . . . . . . 3 . Catastrophic . | . . . . . . . . Database Lockouts . | . . . . . . . . Manual 3 | . . . . . . 3 . Terminals 8 | . . . . . . 8 . Fabricators 4 | . . . . . . 4 . Repair Stations 1 | . . . . . . 1 . Recycling Units . | . . . . . . . . Scanalyzers . | . . . . . . . . Garrison Access . | . . . . . . . . Terminal Hacks 14 | . . 1 5 . 3 5 . Record 6 | . . . 5 . 1 . . Part Schematic 3 | . . . . . . 3 . Open Door 2 | . . 1 . . 1 . . Zone Layout 2 | . . . . . . 2 . Proto ID Catalog 1 | . . . . . 1 . . Fabricator Hacks 2 | . . . . . . 2 . Load Schematic 1 | . . . . . . 1 . Build 1 | . . . . . . 1 . Repair Station Hacks . | . . . . . . . . Recycling Unit Hacks . | . . . . . . . . Scanalyzer . | . . . . . . . . Garrison Access Hacks . | . . . . . . . . Unauthorized Hacks 3 | . . . . . . 3 . Terminals 2 | . . . . . . 2 . Botnet 2 | . . . . . . 2 . Fabricators . | . . . . . . . . Repair Stations 1 | . . . . . . 1 . Mechanics 1 | . . . . . . 1 . Recycling Units . | . . . . . . . . Scanalyzers . | . . . . . . . . Garrison Access . | . . . . . . . . Data Cores Recovered . | . . . . . . . . Used . | . . . . . . . . Hacking Detections 3 | . . . . . . 3 . Full Trace Events . | . . . . . . . . Feedback Events . | . . . . . . . . Feedback Blocked . | . . . . . . . . Robot Schematics Acquired . | . . . . . . . . Robots Built . | . . . . . . . . Authchips . | . . . . . . . . Time . | . . . . . . . . Total Robot Build Rating . | . . . . . . . . Part Schematics Acquired 9 | . . . . . . 9 . Parts Built 1 | . . . . . . 1 . Authchips . | . . . . . . . . Time 42 | . . . . . . 42 . Total Part Build Rating 4 | . . . . . . 4 . Part Studies Acquired . | . . . . . . . . Parts Repaired . | . . . . . . . . Time . | . . . . . . . . Parts Recycled . | . . . . . . . . Recycled Matter . | . . . . . . . . Retrieved Matter . | . . . . . . . . Retrieved Components . | . . . . . . . . Parts Scanalyzed . | . . . . . . . . Part Schematics Acquired . | . . . . . . . . Parts Damaged . | . . . . . . . . Bothacking | -11 -10 -10 -10 -9 -9 -6 -6 ------------ Run | Yrd Mat Min Sub Rec Scr Fac Was Used RIF Installer . | . . . . . . . . Robots Hacked . | . . . . . . . . Non-combat . | . . . . . . . . Combat . | . . . . . . . . Robot Hacks Applied . | . . . . . . . . Relay Couplers Released . | . . . . . . . . Fabnet Peak Effective % . | . . . . . . . . Robots Rewired 6 | . . . . 6 . . . Allies Hacked 1 | . . . . . . 1 . Hacks Repelled . | . . . . . . . . Allies | -11 -10 -10 -10 -9 -9 -6 -6 -------- Run | Yrd Mat Min Sub Rec Scr Fac Was Total Allies 9 | . . 3 . 6 . . . Largest Group 6 | . . 3 3 6 6 6 2 Highest-Rated Group 75 | . . 40 40 75 75 75 20 Highest-Rated Ally 16 | . . 16 16 15 15 15 10 Total Orders . | . . . . . . . . Ally Attacks 32 | . . 1 22 . 2 7 . Total Damage 466 | . . 14 251 . 50 151 . Kills 7 | . . 1 5 . . 1 . Allies Corrupted . | . . . . . . . . Allies Melted 1 | . . . . . 1 . . Intel | -11 -10 -10 -10 -9 -9 -6 -6 ------- Run | Yrd Mat Min Sub Rec Scr Fac Was Active Infowar (turns) 817 | . . . . . . 656 161 A.S.S. 817 | . . . . . . 656 161 Robot Analysis Total . | . . . . . . . . Derelict Logs Recovered 4 | . . . 2 . 2 . . Drone Launches . | . . . . . . . . Drone Recoveries . | . . . . . . . . Exploration | -11 -10 -10 -10 -9 -9 -6 -6 ------------- Run | Yrd Mat Min Sub Rec Scr Fac Was Turns Passed 8463 | 49 246 1186 2151 1557 2259 796 219 Spaces Moved 4476 | 39 139 534 1191 906 1133 424 110 Core 39 | 22 . . . . . . 17 Treads 4437 | 17 139 534 1191 906 1133 424 93 Legs . | . . . . . . . . Wheels . | . . . . . . . . Hover . | . . . . . . . . Flight . | . . . . . . . . Fastest Speed 50 | 50 160 160 160 160 160 156 50 Average Speed 159 | 97 160 160 160 160 160 158 147 Slowest Speed 250 | 160 160 160 160 160 250 250 250 Overloaded Moves . | . . . . . . . . Propulsion Burnouts . | . . . . . . . . Robots Hopped . | . . . . . . . . Potential Cave-ins . | . . . . . . . . Cave-ins Triggered . | . . . . . . . . Exploration Rate (%) 57 | 4 31 101 59 99 84 13 68 Regions Visited 7 Branch Regions 4 Pre-discovered Areas 2 | . . . 1 . 1 . . Known Exits Taken 6 | 1 1 1 1 1 1 . . Unknown Exits Taken . | . . . . . . . . Scrap Searched 9 | . . . . . 9 . . Spaces Dug . | . . . . . . . . Terrain Destroyed 4 | . . . . . . 4 . Melee . | . . . . . . . . Projectile . | . . . . . . . . AOE 4 | . . . . . . 4 . Terrain Rammed . | . . . . . . . . Walls Destroyed . | . . . . . . . . Machines Disabled . | . . . . . . . . Actions | -11 -10 -10 -10 -9 -9 -6 -6 --------- Run | Yrd Mat Min Sub Rec Scr Fac Was Total 5654 | 49 155 853 1347 989 1577 518 166 Wait 940 | . 3 299 87 33 421 62 35 Move 4470 | 38 138 533 1190 905 1132 424 110 Hop . | . . . . . . . . Pick Up 44 | 5 2 6 8 3 9 9 2 Fast Attach 5 | 1 . . . . 3 1 . Attach 19 | 5 1 3 1 . . 5 4 Detach 2 | . 1 1 . . . . . Swap 5 | . . . 2 1 1 1 . Drop 16 | . 1 . 2 1 10 2 . Fire 104 | . 9 9 57 14 1 14 . Melee . | . . . . . . . . Ram 15 | . . . . . . . 15 Kick . | . . . . . . . . Crush 3 | . . 2 . 1 . . . Escape Stasis . | . . . . . . . . Rewire 31 | . . . . 31 . . . Trap . | . . . . . . . . Miscellaneous . | . . . . . . . . Route ------- -11/Scrapyard -10/Materials -10/Mines (discovered 3 exits: *Mat x2 / *Sub) -10/Subcaves (discovered 3 exits: *Mat / *Rec / *Scr) -9/Recycling (discovered 2 exits: *Fac / *Scr) -9/Scraptown (discovered 2 exits: *Fac x2) -6/Factory -6/Waste History --------- Turn | Location | Event 8 | -11/Scrapyard | Identified exit to Materials 8 | -11/Scrapyard | Discovered exit to Materials (range 15) 50 | -11/Scrapyard | Entered Materials 50 | -10/Materials | Evolved 1 slot: Utility x1 240 | -10/Materials | Identified exit to Mines 240 | -10/Materials | Discovered exit to Mines (range 12) 296 | -10/Materials | Entered Mines 306 | -10/Mines | Identified exit to Materials 306 | -10/Mines | Discovered exit to Materials (range 14) 318 | -10/Mines | Build established: Hacker-Mutant 425 | -10/Mines | Discovered exit to Materials (range 15) 503 | -10/Mines | Met a Derelict who couldn't figure out how to use a Trap Extractor 1038 | -10/Mines | Identified exit to Subcaves 1038 | -10/Mines | Discovered exit to Subcaves (range 5) 1204 | -10/Mines | Assisted by bots powering up and referring to "LRC-V3" 1482 | -10/Mines | Entered Subcaves 1482 | -10/Subcaves | Accompanied by 3 allies 1483 | -10/Subcaves | Approached by a straggling Scientist 1511 | -10/Subcaves | Learned Materials interactive machine intel 1879 | -10/Subcaves | Identified exit to Materials 1879 | -10/Subcaves | Discovered exit to Materials (range 9) 1924 | -10/Subcaves | Learned Materials stockpile data 2226 | -10/Subcaves | Shifting Twisted Machinery released Sub. Machine Gun 2249 | -10/Subcaves | Shifting Twisted Machinery released Sub. Shrapnel Launcher 2817 | -10/Subcaves | Scientist uncovered a shortcut to Scraptown 3059 | -10/Subcaves | Visited Clippyterm 3066 | -10/Subcaves | Learned Factory fabricator intel 3066 | -10/Subcaves | Learned location of Section 7 (-2) 3234 | -10/Subcaves | Shifting Twisted Machinery released Spk. Treads 3243 | -10/Subcaves | Shifting Twisted Machinery released Battle Rifle 3271 | -10/Subcaves | Shifting Twisted Machinery released Sub. Optics 3606 | -10/Subcaves | Identified exit to Recycling 3606 | -10/Subcaves | Discovered exit to Recycling (range 15) 3633 | -10/Subcaves | Entered Recycling 3934 | -9/Recycling | Identified exit to Factory 3934 | -9/Recycling | Discovered exit to Factory (range 5) 4161 | -9/Recycling | Build established: Commander-Mutant 4164 | -9/Recycling | Scanned before Scraplab entrance 5153 | -9/Recycling | Entered Scraplab 5165 | -9/Recycling | Identified exit to Scraptown 5165 | -9/Recycling | Discovered exit to Scraptown (range 3) 5190 | -9/Recycling | Entered Scraptown 5190 | -9/Scraptown | Accompanied by 6 allies 5372 | -9/Scraptown | Heard Great Nut preacher, LISTEN AND RECITE! 5452 | -9/Scraptown | Identified exit to Factory 5452 | -9/Scraptown | Discovered exit to Factory (range 11) 5533 | -9/Scraptown | Scanned Subdweller tech in exchange for log data 5538 | -9/Scraptown | Learned Factory terminal intel 5540 | -9/Scraptown | Learned Research stockpile data 5581 | -9/Scraptown | Visited Bundlers 5666 | -9/Scraptown | Build established: Hacker-Mutant 5699 | -9/Scraptown | Visited SPCMW 5749 | -9/Scraptown | Visited Red Mages 5807 | -9/Scraptown | Visited Assassins FH 6083 | -9/Scraptown | Visited UFD Registry 6083 | -9/Scraptown | Registered with UFD as "Monobank" 6143 | -9/Scraptown | Visited Sword Containment 6159 | -9/Scraptown | Found Prototype Slashing Weapon 6224 | -9/Scraptown | Visited Junk Repository 6330 | -9/Scraptown | Visited Curators Association 6426 | -9/Scraptown | Delivered Scrap Shield to a Scientist 6544 | -9/Scraptown | Visited Infowarlord's Domain 6558 | -9/Scraptown | Found Active Sensor Suite 6589 | -9/Scraptown | Visited Observation Area 6621 | -9/Scraptown | Visited Science Guys 6672 | -9/Scraptown | Visited Junk Repository 6733 | -9/Scraptown | Visited Derelict Rescue Squad 6944 | -9/Scraptown | Met Optimus 6944 | -9/Scraptown | Accepted into 0bPrime 7344 | -9/Scraptown | Civil war broke out across Scraptown 7352 | -9/Scraptown | Found Voltaic Drivehammer 7409 | -9/Scraptown | Lost 5 allies 7409 | -9/Scraptown | Discovered exit to Factory (range 10) 7449 | -9/Scraptown | Entered Factory 7449 | -6/Factory | Accompanied by 6 allies 7449 | -6/Factory | Evolved 8 slots: Power x1, Propulsion x2, Utility x5 7450 | -6/Factory | Loaded intel: 27 terminal locations 7451 | -6/Factory | Loaded intel: 6 fabricator locations 7734 | -6/Factory | Build established: Hacker-Skirmisher 7998 | -6/Factory | Tech Extrapolator generated special schematic: Deep Structural Scanner 8076 | -6/Factory | Fabricated Deep Structural Scanner (x1) 8245 | -6/Factory | Sucked down chute 8245 | -6/Factory | Entered Waste 8260 | -6/Waste | EMP discharged 8272 | -6/Waste | Spotted C-40 Crusher 8290 | -6/Waste | 2 allies followed down the chute 8334 | -6/Waste | Spotted C-40 Crusher 8360 | -6/Waste | EMP discharged 8367 | -6/Waste | Spotted C-40 Crusher 8368 | -6/Waste | Spotted C-40 Crusher 8373 | -6/Waste | Spotted C-40 Crusher 8382 | -6/Waste | Spotted C-40 Crusher 8385 | -6/Waste | Crushed by Compactor (1 part destroyed, 2 dropped) 8387 | -6/Waste | Crushed by Compactor (1 part destroyed) 8396 | -6/Waste | Crushed by Compactor (1 part destroyed, 1 dropped) 8399 | -6/Waste | Crushed by Compactor (1 part destroyed, 2 dropped) 8402 | -6/Waste | Crushed by Compactor (1 part destroyed) 8405 | -6/Waste | Crushed by Compactor (0 parts destroyed, 1 dropped) 8411 | -6/Waste | Crushed by Compactor (1 part destroyed) 8419 | -6/Waste | Crushed by Compactor (1 part destroyed) 8423 | -6/Waste | Crushed by Compactor (0 parts destroyed, 1 dropped) 8429 | -6/Waste | Crushed by Compactor (1 part destroyed) 8436 | -6/Waste | Core integrity fell below 50% 8444 | -6/Waste | Crushed by Compactor (1 part destroyed) 8453 | -6/Waste | System corruption reached 10% 8457 | -6/Waste | Core integrity fell below 20% 8460 | -6/Waste | EMP discharged 8464 | -6/Waste | Core destroyed Last Messages --------------- 08419_ Imp. EM Pulse Cannon crushed. 08423_ Mak. System Shield crushed. 08429_ Voltaic Drivehammer crushed. 08441_ Critical hit (Destroy). 08441_ Active Sensor Suite destroyed. 08444_ Imp. System Shield crushed. 08449_ Slammed into C-40 Crusher. 08450_ ALERT: Foreign system detected. Charging EMP. 08450_ Slammed into C-40 Crusher. 08451_ Destabilizing: System corrupted (+1). 08452_ Slammed into C-40 Crusher. 08452_ Destabilizing: System corrupted (+1). 08453_ Slammed into C-40 Crusher. 08457_ Destabilizing: System corrupted (+2). 08458_ Slammed into C-40 Crusher. 08460_ System corrupted: Heat flow error (+122). 08460_ System corrupted (+3). 08460_ Slammed into C-40 Crusher. 08464_ Destabilizing: Core damaged (-17). Map ----- +----------------------------------------------------+ | ?????????????????????????????????????????????????? | | ?????????????????????????????????????????????????? | | ?????????????????????????????????????????????????? | | ?????????????????????????????????????????????????? | | ?????????????????????????????????????????????????? | | ?????????????????????????????????????????????????? | | ?????????????????????????????????????????????????? | | ?????????????????????????????????????????????????? | | ?????????????????????????????????????????????????? | | ?????????????????????????????????????????????????? | | ?????????????????????????????????????????????????? | | ?????????????????????????????????????????????????? | | ?????????????????????????????????????????????????? | | ?????????????????????????????????????????????????? | | ?????????????????????????????????????????????????? | | ?????????????????????????????????????????????????? | | ?????????????????????????????????????????????????? | | ?????????????????????????????????????????????????? | | ?????????????????????????????????????????????????? | | ?????????????????????????????????????????????????? | | ?????????????????????????????????????????????????? | | ?????????????????????????????????????????????????? | | ######??????######??????######???????????????????? | | # #??????# #??????# ==#???????????????????? | | # #??????# #??????# CC #???????????????????? | | # #??????# #??????#@CC #???????????????????? | | # #??????# #??????#CCCC#?????????? #???????? | | # ######## ########CCCC######## ###?????? | | CCCC #?????? | | * CCCC #?????? | | CC #?????? | | CC #?????? | | # ######## ######## ######## ##??????? | | # #??????# #??????# #????????? #???????? | | # #??????# #??????# #???????????????????? | | # #??????# #??????# #???????????????????? | | # ######## ######## #???????????????????? | | ???????????????????? | | = ??????????????????? | | % ?????????????????? | | ????????????????? | | # ######## ######## #####???????????????? | | # #??????# #??????# #???????????????????? | | # #??????# #??????# #???????????????????? | | # #??????# #??????? ????????????????????? | | # #??????# #???????????????????????????????? | | ????? #???????????????????????????????? | | ?? #???????????????????????????????? | | #???????????????????????????????? | | #???????????????????????????????? | +----------------------------------------------------+ Best States ------------- Heat Dissipation 37 Energy Generation 29 Energy Capacity 340 Matter Stores 300 Matter Capacity 300 Sight Range 16 Robot Scan Range 20 Terrain Scan Density 10 Armor Coverage 300 Resistance: KI 35 Resistance: TH 35 Resistance: EX 35 Resistance: EM 35 Resistance: I 35 Resistance: S 35 Resistance: P 35 Evasion (%) 50 Recoil Reduction 4 Offensive Hacking 20 Defensive Hacking 23 Authchip Count 3 Item Schematics ----------------- Lgt. Humpback | -6/Factory | Extrapolated Imp. Plasma Cutter | -6/Factory | Hacked Imp. Medium Treads | -6/Factory | Hacked Adv. Datajack | -6/Factory | Hacked Mak. Light Armor Plating | -6/Factory | Extrapolated Mak. System Shield | -6/Factory | Extrapolated Deep Structural Scanner | -6/Factory | Extrapolated Mak. Coolant Network | -6/Factory | Extrapolated Beamcaster | -6/Factory | Extrapolated Robot Schematics ------------------ None Fabricated ------------ Deep Structural Scanner | x1 | -6/Factory Repaired ---------- Nothing Studied --------- None Alien Tech Used ----------------- None Achievements -------------- None Challenges ------------ None Game ------ Seed WarpBarrageTurbovents Manual? 0 Play Time 00:36:29 Cumulative 144.4 hours Start 2025.11.25 @ 16:10:36 End 2025.11.25 @ 16:46:35 Sessions 1 Manual Loads 0 Difficulty Explorer Special Mode None Game No. 173 Rogue 0 Adventurer 0 Explorer 173 Win Type - Total 0 Types 0/0/0/0/0/0/0/0/0/0 Lore% 69 Gallery% 66 Achievement% 52 Wizard Run 0 Options --------- Layout 1 ASCII 0 Keyboard 0 Movement Mouse Keybinds 0 Fullscreen 1 Font 24/Smallcaps Map View 50x35 Zoom Use 0% Tactical HUD 1 Map Filters NONE Filters NONE Steam 1 RUN: 9cf2cb9d-7a42-4a79-916f-f00babee6102